bitfinex-derivatives/quotes_SOLF0:USTF0_20240824
["timestamp","ask_amount","ask_price","bid_price","bid_amount"]
[1724496755268,0.04127689,158.66,158.63,3.1504]
[1724496756071,3.19127689,158.66,158.62,2.67204649]
[1724496756374,3.19127689,158.66,158.62,1.37164649]
[1724496757276,31.08,158.76,158.62,1.37164649]
[1724496757480,7.77,158.7,158.63,1.3004]
[1724496757774,34.17409558,158.76,158.64,3.1502]
[1724496757775,3.1495,158.68,158.64,3.1502]
[1724496757971,3.08306774,158.67,158.64,3.1502]
[1724496758198,3.123901,158.67,158.64,3.19390773]
[1724496758878,233.48987657,158.92,158.65,7.77]
[1724496759072,7.77,158.72,158.65,76.14453052]
[1724496759272,7.77,158.72,158.65,68.37453052]
[1724496759474,7.77,158.67,158.59,1.3277]
[1724496759677,3.8057,158.71,158.61,7.77]
[1724496759975,3.1492,158.7,158.66,3.1498]
[1724496760184,0.04421217,158.68,158.66,3.1498]
[1724496762681,0.04421217,158.68,158.64,0.04349508]
[1724496763074,7.81421217,158.68,158.64,0.04349508]
[1724496763274,0.04421217,158.68,158.64,3.19379508]
[1724496763677,0.04421217,158.68,158.64,0.04349508]
[1724496763882,0.04421217,158.68,158.65,3.15]
[1724496766590,7.77,158.67,158.64,0.04349508]
[1724496766784,0.04421217,158.68,158.64,0.04349508]
[1724496766785,7.77,158.66,158.64,0.04349508]
[1724496767178,0.04421217,158.68,158.64,0.04349508]
[1724496767382,7.81421217,158.68,158.64,0.04349508]
[1724496769380,3.1497,158.67,158.64,3.19369508]
[1724496771586,0.04421217,158.68,158.64,0.04349508]
[1724496771792,7.81421217,158.68,158.64,0.04349508]
[1724496772294,10.9201,158.65,158.64,0.04349508]
[1724496772889,3.1501,158.65,158.64,0.04349508]
[1724496775689,7.77,158.65,158.58,3.1514]
[1724496775996,7.77,158.65,158.57,7.77]
[1724496776295,3.1506,158.63,158.59,3.1513]
[1724496776796,3.19340907,158.63,158.59,3.19345068]
[1724496777697,3.1507,158.62,158.59,3.19345068]
[1724496778796,3.08250774,158.62,158.59,3.19345068]
[1724496779400,3.08250774,158.62,158.59,0.04215068]
[1724496780501,3.151,158.61,158.59,0.04215068]
[1724496781097,3.1511,158.6,158.59,0.04215068]
[1724496782001,3.1515,158.58,158.55,10.9221]
[1724496782207,3.1515,158.58,158.53,32.97]
[1724496782401,3.1515,158.58,158.54,3.1522]
[1724496783013,3.19280174,158.58,158.54,3.19337607]
[1724496783204,3.19280174,158.58,158.55,3.1521]
[1724496784197,3.19280174,158.58,158.56,3.1519]
[1724496784198,0.04130174,158.58,158.56,3.1519]
[1724496785103,0.04130174,158.58,158.56,7.77]
[1724496786205,0.04130174,158.58,158.54,0.04117607]
[1724496786405,0.04130174,158.58,158.54,7.81117607]
[1724496786901,0.04130174,158.58,158.54,0.04117607]
[1724496787105,0.04130174,158.58,158.55,3.1519]
[1724496787497,0.04130174,158.58,158.54,0.04117607]
[1724496787899,0.04130174,158.58,158.54,7.81117607]
[1724496788098,0.04130174,158.58,158.55,3.152]
[1724496788801,3.19290174,158.58,158.54,10.96337607]
[1724496789105,7.81130174,158.58,158.51,7.77]
[1724496789309,7.81130174,158.58,158.43,341.35358812]
[1724496789310,7.77,158.58,158.45,1.6706]
[1724496789501,3.1524,158.54,158.5,10.923]
[1724496789693,1.3348,158.57,158.5,10.923]
[1724496789906,0.04529299,158.55,158.52,0.04154729]
[1724496790403,3.12547743,158.55,158.52,0.04154729]
[1724496790908,0.04529299,158.55,158.52,0.04154729]
[1724496791104,7.77,158.53,158.46,7.77]
[1724496791606,7.77,158.53,158.47,7.77]
[1724496792195,0.0403939,158.52,158.48,0.04040491]
[1724496792601,3.1529,158.51,158.48,0.04040491]
[1724496793804,0.0403939,158.52,158.48,0.04040491]
[1724496795005,3.1932939,158.52,158.48,3.19380491]
[1724496795205,0.0403939,158.52,158.48,0.04040491]
[1724496795831,3.1531,158.51,158.48,0.04040491]
[1724496796406,0.0403939,158.52,158.48,0.04040491]
[1724496797508,3.1529,158.51,158.48,0.04040491]
[1724496797708,0.0403939,158.52,158.48,0.04040491]
[1724496799125,0.0403939,158.52,158.43,87.42583785]
[1724496799126,7.77,158.49,158.43,25.2]
[1724496799315,10.99476597,158.49,158.43,25.2]
[1724496799812,7.77,158.49,158.43,25.2]
[1724496800115,0.04552614,158.48,158.44,0.0481735]
[1724496800316,3.1538,158.47,158.44,3.2023735]
[1724496800711,0.04552614,158.48,158.44,0.0481735]
[1724496800908,3.1541,158.45,158.44,0.0481735]
[1724496805722,10.9241,158.45,158.44,0.0481735]
[1724496806218,3.1541,158.45,158.44,0.0481735]
[1724496808416,10.9241,158.45,158.44,0.0481735]
[1724496808946,3.1546,158.43,158.4,3.1551]
[1724496809119,7.77,158.45,158.4,3.1551]
[1724496809724,7.77,158.45,158.39,3.1552]
[1724496809916,0.04034747,158.44,158.41,0.04624522]
[1724496810523,3.1546,158.43,158.41,0.04624522]
[1724496810824,7.77,158.43,158.41,0.04624522]
[1724496811016,7.77,158.42,158.33,25.22]
[1724496811220,7.77,158.42,158.35,7.77]
[1724496811420,2.4752,158.43,158.37,7.77]
[1724496811815,5.55692516,158.43,158.37,7.77]
[1724496812020,3.1551,158.41,158.38,0.04066144]
[1724496812240,0.04212304,158.42,158.38,0.04066144]
[1724496813920,3.19692304,158.42,158.39,3.1552]
[1724496815848,0.04212304,158.42,158.38,0.04066144]
[1724496816233,7.77,158.39,158.38,0.04066144]
[1724496816526,7.77,158.39,158.3,9.0349]
[1724496816729,7.77,158.39,158.32,7.77]
[1724496816930,7.77,158.37,158.33,3.1563]
[1724496817125,7.77,158.35,158.26,1.2649]
[1724496817331,3.157,158.31,158.27,3.1576]
[1724496817629,3.157,158.31,158.29,0.04007649]
[1724496817824,0.04431941,158.32,158.29,0.04007649]
[1724496818228,3.1571,158.3,158.29,0.04007649]
[1724496819231,7.77,158.3,158.22,95.7973536]
[1724496819429,7.77,158.27,158.2,7.77]
[1724496819834,32.3987,158.36,157.99,2.90874112]
[1724496819835,7.77,158.22,157.99,2.90874112]
[1724496820133,7.77,158.22,157.97,98.49986249]
[1724496820134,7.77,158.2,158.13,7.77]
[1724496820330,7.81818075,158.18,158.15,0.04512183]
[1724496820636,0.04314288,158.18,158.15,0.04439946]
[1724496821927,3.1599,158.17,158.15,0.04439946]
[1724496822132,19.46314288,158.18,158.15,0.04439946]
[1724496822432,3.1599,158.16,158.15,0.04439946]
[1724496823430,3.1606,158.13,158.06,1.2541]
[1724496823636,3.1606,158.13,158.06,20.6741]
[1724496823827,3.1606,158.13,158.08,3.1613]
[1724496824429,2.5624,158.17,158.09,0.04006739]
[1724496824626,0.04621596,158.12,158.09,0.04006739]
[1724496825030,0.04621596,158.12,158.1,22.581]
[1724496825252,0.04621596,158.12,158.1,3.161]
[1724496825435,0.04621596,158.12,158.09,19.46006739]
[1724496826038,0.04621596,158.12,158.09,0.04006739]
[1724496827939,0.04621596,158.12,158.09,3.20116739]
[1724496828137,0.04621596,158.12,158.09,0.04006739]
[1724496830440,0.04621596,158.12,158.09,3.20116739]
[1724496832544,0.04621596,158.12,158.1,3.1611]
[1724496832743,0.04621596,158.12,158.09,0.04006739]
[1724496833136,0.04621596,158.12,158.11,3.1609]
[1724496833639,19.42,158.19,158.14,3.1601]
[1724496833834,19.42,158.19,158.09,19.42]
[1724496834041,19.42,158.22,158.18,3.1595]
[1724496834344,19.42,158.24,158.14,19.42]
[1724496834540,19.42,158.24,158.17,0.0475754]
[1724496834735,0.0472243,158.21,158.17,0.0475754]
[1724496835742,19.42,158.2,158.17,0.0475754]
[1724496836043,3.1595,158.18,158.17,0.0475754]
[1724496836235,0.0472243,158.21,158.17,0.0475754]
[1724496837342,0.0472243,158.21,158.19,3.1592]
[1724496838139,0.0472243,158.21,158.17,0.0475754]
[1724496839138,0.0472243,158.21,158.2,3.1591]
[1724496839336,3.8802,158.34,158.2,19.42]
[1724496839649,3.1573,158.29,158.25,3.158]
[1724496840445,0.04427102,158.29,158.25,0.04735195]
[1724496841544,3.1577,158.28,158.25,0.04735195]
[1724496841745,0.04427102,158.29,158.25,0.04735195]
[1724496842141,3.1578,158.27,158.25,0.04735195]
[1724496843642,0.04427102,158.29,158.25,0.04735195]
[1724496843643,3.1579,158.26,158.25,0.04735195]
[1724496844045,3.1585,158.23,158.15,20.7303]
[1724496844361,22.5785,158.23,158.15,20.7303]
[1724496845048,0.04158292,158.21,158.17,0.0415946]
[1724496846248,0.04158292,158.21,158.18,3.1593]
[1724496846651,3.20048292,158.21,158.17,3.2011946]
[1724496847345,3.1591,158.2,158.17,3.2011946]
[1724496847546,19.46158292,158.21,158.17,0.0415946]
[1724496847848,3.1594,158.19,158.17,0.0415946]
[1724496848049,22.5794,158.19,158.17,0.0415946]
[1724496848249,19.42,158.19,158.17,0.0415946]
[1724496848843,0.04158292,158.21,158.17,0.0415946]
[1724496849249,3.20048292,158.21,158.17,3.2010946]
[1724496849449,0.04158292,158.21,158.17,0.0415946]
[1724496850048,0.04158292,158.21,158.18,3.1593]
[1724496850248,0.04158292,158.21,158.17,0.0415946]
[1724496850655,0.04158292,158.21,158.19,3.1593]
[1724496851555,0.04158292,158.21,158.17,0.0415946]
[1724496851850,19.42,158.28,158.17,19.4615946]
[1724496852055,19.42,158.26,158.18,3.10207087]
[1724496852245,22.5781,158.26,158.21,3.1587]
[1724496852754,0.04186562,158.25,158.22,0.04586214]
[1724496854754,0.04186562,158.25,158.23,3.1585]
[1724496854953,25.26,158.45,158.22,0.04586214]
[1724496855154,19.42,158.32,158.22,1.242]
[1724496855352,19.42,158.32,158.26,3.1577]
[1724496855651,19.42,158.32,158.22,1.242]
[1724496855852,0.04508025,158.29,158.27,3.1575]
[1724496856653,0.04508025,158.29,158.26,3.1578]
[1724496857859,0.04508025,158.29,158.25,3.2061965]
[1724496857860,19.46508025,158.29,158.25,3.2061965]
[1724496858155,19.46508025,158.29,158.25,0.0481965]
[1724496858451,24.26,158.26,158.25,0.0481965]
[1724496858652,27.4179,158.26,158.25,0.0481965]
[1724496859152,24.26,158.26,158.25,0.0481965]
[1724496859354,3.1577,158.27,158.25,0.0481965]
[1724496859852,27.4176,158.28,158.25,0.0481965]
[1724496860156,24.26,158.28,158.25,0.0481965]
[1724496860761,3.1577,158.27,158.25,0.0481965]
[1724496860947,24.26,158.28,158.25,0.0481965]
[1724496861555,24.26,158.26,158.17,1.3023]
[1724496861754,3.1584,158.24,158.17,1.3023]
[1724496861954,24.26,158.23,158.13,2.5428]
[1724496862554,0.04444492,158.2,158.16,0.04851656]
[1724496862949,3.20364492,158.2,158.16,0.04851656]
[1724496863149,0.04444492,158.2,158.16,0.04851656]
[1724496863558,3.1594,158.19,158.16,0.04851656]
[1724496865459,3.20354492,158.2,158.16,0.04851656]
[1724496866364,0.04444492,158.2,158.16,3.20831656]
[1724496866553,0.04444492,158.2,158.16,0.04851656]
[1724496867660,3.1597,158.17,158.16,0.04851656]
[1724496868059,3.1595,158.18,158.16,0.04851656]
[1724496868465,3.1594,158.19,158.16,0.04851656]
[1724496869658,1.34994492,158.2,158.17,3.1597]
[1724496869965,0.04444492,158.2,158.17,3.1597]
[1724496871366,0.04444492,158.2,158.16,0.04851656]
[1724496872168,0.04444492,158.2,158.19,3.1593]
[1724496879272,0.04444492,158.2,158.17,3.19395272]
[1724496879568,0.04444492,158.2,158.16,19.45851656]
[1724496880066,0.04444492,158.2,158.17,3.1319292]
[1724496880567,0.04444492,158.2,158.19,3.1593]
[1724496882566,3.1578,158.27,158.18,19.41]
[1724496882768,19.41,158.3,158.21,19.41]
[1724496883266,3.1576,158.28,158.23,3.1583]
[1724496883663,0.04458009,158.27,158.24,0.04218791]
[1724496883860,0.04458009,158.27,158.24,3.20048791]
[1724496884058,3.20228009,158.27,158.24,0.04218791]
[1724496886775,3.1579,158.26,158.24,0.04218791]
[1724496893480,3.1581,158.25,158.24,0.04218791]
[1724496898885,3.1587,158.22,158.19,3.1592]
[1724496899282,19.41,158.24,158.15,25.26]
[1724496899778,3.1592,158.2,158.18,0.04591016]
[1724496901786,0.04478364,158.21,158.18,0.04591016]
[1724496902182,3.20378364,158.21,158.18,0.04591016]
[1724496902377,0.04478364,158.21,158.18,0.04591016]
[1724496902781,3.1593,158.2,158.18,0.04591016]
[1724496905887,3.1593,158.19,158.18,0.04591016]
[1724496907490,3.1591,158.2,158.18,0.04591016]
[1724496907787,0.04478364,158.21,158.18,0.04591016]
[1724496907987,3.20378364,158.21,158.18,0.04591016]
[1724496908497,0.04478364,158.21,158.18,0.04591016]
[1724496908686,0.04478364,158.21,158.19,10.9192]
[1724496908891,0.04478364,158.21,158.19,7.76]
[1724496909687,0.04478364,158.21,158.2,7.76]
[1724496910487,0.04478364,158.21,158.2,19.4]
[1724496910991,1.2824,158.26,158.2,22.41354411]
[1724496911185,1.2824,158.26,158.23,19.4]
[1724496911399,4.4403,158.26,158.23,22.5583]
[1724496911591,60.43653416,158.3,158.25,19.4]
[1724496912086,0.04271241,158.29,158.26,0.04715703]
[1724496912891,3.1577,158.27,158.26,0.04715703]
[1724496915291,3.1576,158.28,158.26,0.04715703]
[1724496915790,0.04271241,158.29,158.26,0.04715703]
[1724496915791,3.1577,158.27,158.26,0.04715703]
[1724496915996,6.2632605,158.27,158.26,0.04715703]
[1724496917724,3.1585,158.23,158.18,5.75351658]
[1724496917900,3.1585,158.23,158.19,3.01194402]
[1724496918100,3.1585,158.23,158.18,19.4]
[1724496918399,3.1584,158.24,158.19,3.012532]
[1724496918699,4.3362605,158.27,158.2,3.159]
[1724496918897,0.04729424,158.23,158.2,3.20682929]
[1724496919300,3.20579424,158.23,158.2,3.20682929]
[1724496921099,3.1589,158.21,158.2,0.04782929]
[1724496928397,3.1588,158.22,158.2,0.04782929]
[1724496928696,0.04729424,158.23,158.2,0.04782929]
[1724496929405,3.20589424,158.23,158.2,0.04782929]
[1724496930007,0.04729424,158.23,158.2,19.44782929]
[1724496930204,0.04729424,158.23,158.22,19.4]
[1724496930401,0.04729424,158.23,158.22,22.4137489]
[1724496930802,0.04729424,158.23,158.22,3.0137489]
[1724496931106,0.04729424,158.23,158.2,0.04782929]
[1724496933311,3.1589,158.21,158.2,0.04782929]
[1724496934209,7.76,158.22,158.01,2.84778645]
[1724496934409,0.04729424,158.23,158.01,2.84778645]
[1724496934410,2.5642,158.2,158.08,7.76]
[1724496934609,7.76,158.16,158.09,3.01554418]
[1724496934910,10.99183671,158.16,158.1,3.01554418]
[1724496935109,10.99183671,158.16,158.11,3.01554418]
[1724496935414,3.1608,158.12,158.1,0.04363615]
[1724496935605,3.1608,158.12,158.11,1.26430213]
[1724496935810,3.1608,158.12,158.1,0.04363615]
[1724496936015,3.1608,158.12,158.11,3.01810912]
[1724496936216,3.1608,158.12,158.1,0.04363615]
[1724496936418,3.1608,158.12,158.11,1.26430326]
[1724496936839,3.1608,158.12,158.1,0.04363615]
[1724496937120,3.1608,158.12,158.11,1.26430326]
[1724496937518,3.1608,158.12,158.1,0.04363615]
[1724496938116,0.04479532,158.14,158.1,0.04363615]
[1724496938117,3.1609,158.11,158.1,0.04363615]
[1724496938319,0.04479532,158.14,158.1,0.04363615]
[1724496938514,3.1605,158.13,158.1,0.04363615]
[1724496939023,0.04479532,158.14,158.1,0.04363615]
[1724496940316,3.1607,158.12,158.1,0.04363615]
[1724496942122,3.1609,158.11,158.1,0.04363615]
[1724496943924,3.1607,158.12,158.1,0.04363615]
[1724496945123,0.04479532,158.14,158.1,19.47363615]
[1724496945819,0.04479532,158.14,158.11,3.1607]
[1724496946534,0.04479532,158.14,158.1,3.20463615]
[1724496946919,0.04479532,158.14,158.1,0.04363615]
[1724496947526,3.1607,158.12,158.1,0.04363615]
[1724496948031,3.1605,158.13,158.1,0.04363615]
[1724496948425,0.04479532,158.14,158.1,0.04363615]
[1724496950419,3.1609,158.11,158.1,0.04363615]
[1724496954431,3.1615,158.08,158.02,19.43]
[1724496954631,3.1615,158.08,158.05,3.1619]
[1724496955127,3.1613,158.09,158.02,19.43]
[1724496955332,0.04475016,158.07,158.03,0.04131868]
[1724496956438,0.04475016,158.07,158.05,7.77]
[1724496958327,0.04475016,158.07,158.06,3.1619]
[1724496959938,0.04475016,158.07,158.06,10.9319]
[1724496960937,0.04475016,158.07,158.06,3.1619]
[1724496966457,0.04475016,158.07,158.06,10.9319]
[1724496966643,0.04475016,158.07,158.06,3.1619]
[1724496967039,0.04475016,158.07,158.06,10.9319]
[1724496968043,0.04475016,158.07,158.03,0.04131868]
[1724496968244,0.04475016,158.07,158.05,7.77]
[1724496968441,0.04475016,158.07,158.03,0.04131868]
[1724496968639,0.04475016,158.07,158.05,7.77]
[1724496968841,0.04475016,158.07,158.05,10.9319]
[1724496969041,0.04475016,158.07,158.05,3.1619]
[1724496969243,0.04475016,158.07,158.05,10.9319]
[1724496971045,0.04475016,158.07,158.05,3.1619]
[1724496972445,3.20655016,158.07,158.04,3.1622]
[1724496973640,3.1619,158.06,158.03,10.97371868]
[1724496973940,0.04475016,158.07,158.03,0.04131868]
[1724496974138,7.77,158.04,157.87,2.84778645]
[1724496974371,7.77,158.04,157.86,234.54335935]
[1724496974372,10.96361658,158.04,157.96,36.15091225]
[1724496974545,3.163,158.01,157.97,3.1636]
[1724496974951,3.163,158.01,157.98,7.77]
[1724496975153,3.1631,158.0,157.97,7.77]
[1724496975449,3.1631,158.0,157.98,0.04385832]
[1724496975849,3.20996641,158.01,157.98,0.04385832]
[1724496976048,3.20996641,158.01,157.98,7.81385832]
[1724496976248,3.20996641,158.01,157.98,0.04385832]
[1724496976249,0.04706641,158.01,157.98,0.04385832]
[1724496976753,3.20996641,158.01,157.98,0.04385832]
[1724496977261,3.20996641,158.01,157.98,10.97725832]
[1724496977449,0.04706641,158.01,157.98,10.97725832]
[1724496977672,0.04706641,158.01,157.98,7.81385832]
[1724496977847,3.1631,158.0,157.98,7.81385832]
[1724496978050,3.1631,158.0,157.98,0.04385832]
[1724496978051,7.77,158.0,157.98,0.04385832]
[1724496978252,3.1639,157.96,157.92,6.26760386]
[1724496978446,3.1639,157.96,157.92,3.1646]
[1724496978950,3.1639,157.96,157.93,3.1645]
[1724496979145,1.3208,157.99,157.9,3.17637288]
[1724496979352,0.04659381,157.96,157.93,0.04611825]
[1724496979759,3.21049381,157.96,157.93,0.04611825]
[1724496979951,0.04659381,157.96,157.93,0.04611825]
[1724496980447,3.1641,157.95,157.93,0.04611825]
[1724496980659,0.04659381,157.96,157.93,0.04611825]
[1724496981652,3.1647,157.92,157.86,7.77]
[1724496981852,7.77,157.94,157.87,7.77]
[1724496982059,2.5635,157.99,157.89,7.77]
[1724496982253,2.5635,157.99,157.9,7.77]
[1724496982453,7.77,157.98,157.9,7.77]
[1724496982654,0.04029393,157.96,157.9,10.94383869]
[1724496983058,3.1643,157.94,157.9,14.10883869]
[1724496983456,3.1645,157.93,157.89,3.1651]
[1724496983661,3.20752496,157.93,157.89,3.1651]
[1724496984769,0.04302496,157.93,157.91,7.77]
[1724496985356,0.04302496,157.93,157.91,10.9348]
[1724496985966,0.04302496,157.93,157.9,3.1651]
[1724496986565,0.04302496,157.93,157.91,3.1648]
[1724496987660,0.04302496,157.93,157.92,10.9347]
[1724496988066,1.3208,157.99,157.92,7.77]
[1724496988268,2.5743,158.06,157.95,7.77]
[1724496988470,1.2662,158.05,157.98,7.77]
[1724496988765,1.2662,158.05,157.93,2.549]
[1724496988968,0.04584768,158.01,157.98,7.77]
[1724496989165,3.20874768,158.01,157.97,0.04287736]
[1724496989665,0.04584768,158.01,157.97,0.04287736]
[1724496989860,0.04584768,158.01,157.98,3.1634]
[1724496990062,0.04584768,158.01,157.98,7.77]
[1724496990262,0.04584768,158.01,157.97,7.81287736]
[1724496990499,0.04584768,158.01,157.97,0.04287736]
[1724496990963,7.77,157.98,157.97,0.04287736]
[1724496991162,10.98358227,157.98,157.97,0.04287736]
[1724496991365,3.1642,157.95,157.91,3.1647]
[1724496991564,10.9342,157.95,157.91,3.1647]
[1724496992469,3.1643,157.94,157.91,3.1647]
[1724496992662,0.04679069,157.95,157.91,3.1647]
[1724496993068,3.21099069,157.95,157.91,3.1647]
[1724496993801,3.21099069,157.95,157.86,1.3178]
[1724496993802,7.77,157.92,157.73,232.3368]
[1724496993982,0.04423736,157.84,157.81,7.77]
[1724496994169,0.04796412,157.84,157.81,7.77]
[1724496994367,0.04796412,157.84,157.83,3.1665]
[1724496996877,19.45,157.94,157.86,3.1658]
[1724496997576,19.45,157.9,157.8,21.9357]
[1724496997763,3.1659,157.86,157.83,0.04148534]
[1724496997969,3.1659,157.86,157.83,0.04059707]
[1724496998170,0.04011836,157.86,157.83,0.04059707]
[1724496998566,3.1663,157.84,157.83,0.04059707]
[1724496998768,19.45,157.85,157.62,21.80778645]
[1724496999078,3.09862098,157.87,157.73,19.45]
[1724496999079,19.45,157.83,157.73,19.45]
[1724496999278,19.45,157.85,157.74,3.14421687]
[1724496999670,19.45,157.83,157.72,19.45]
[1724496999870,0.04707353,157.79,157.75,3.168]
[1724497000373,0.04707353,157.79,157.68,19.45]
[1724497000679,0.04747278,157.75,157.7,19.45]
[1724497000868,0.04747278,157.75,157.73,3.1685]
[1724497001069,0.04747278,157.75,157.72,19.45]
[1724497001273,0.04747278,157.75,157.72,22.62113112]
[1724497002081,0.04747278,157.75,157.72,19.45]
[1724497002471,0.04747278,157.75,157.72,22.59002773]
[1724497003074,19.45,157.82,157.72,22.59002773]
[1724497003978,3.1672,157.8,157.75,3.1681]
[1724497004167,0.04097544,157.79,157.76,0.04092956]
[1724497004372,0.04097544,157.79,157.76,3.20862956]
[1724497004766,0.04097544,157.79,157.76,0.04092956]
[1724497005172,19.45,157.77,157.52,28.4781]
[1724497005374,19.45,157.77,157.67,19.45]
[1724497005578,19.45,157.77,157.67,22.64903359]
[1724497005775,3.1682,157.75,157.7,3.1689]
[1724497006079,3.1682,157.75,157.67,19.45]
[1724497006374,19.4901393,157.74,157.65,19.45]
[1724497006575,19.4901393,157.74,157.64,1.2681]
[1724497006779,0.04166762,157.71,157.64,1.2681]
[1724497006967,0.04166762,157.71,157.68,3.1694]
[1724497007167,0.04166762,157.71,157.65,3.18889603]
[1724497008076,0.04166762,157.71,157.67,19.45]
[1724497008480,0.04166762,157.71,157.66,3.23324786]
[1724497008681,24.35,157.77,157.65,25.5967]
[1724497009179,24.35,157.8,157.68,24.35]
[1724497009878,0.04456576,157.76,157.72,3.21103711]
[1724497010078,0.04456576,157.76,157.72,0.04253711]
[1724497012373,24.35,157.75,157.53,6.3449]
[1724497012575,24.35,157.7,157.6,1.2815]
[1724497013081,3.1696,157.68,157.6,1.2815]
[1724497013470,0.04600155,157.66,157.6,1.2815]
[1724497014177,0.04600155,157.66,157.63,3.1703]
[1724497014577,0.04600155,157.66,157.61,27.5778561]
[1724497014877,24.35,157.72,157.62,1.2977]
[1724497015081,3.1693,157.7,157.63,3.23741707]
[1724497015280,24.35,157.72,157.65,3.17]
[1724497015477,24.35,157.72,157.63,3.23741707]
[1724497015981,24.35,157.72,157.66,0.04403369]
[1724497015982,0.04417062,157.69,157.66,0.04403369]
[1724497017284,0.04417062,157.69,157.66,3.21373369]
[1724497017479,0.04417062,157.69,157.66,0.04403369]
[1724497017676,0.04417062,157.69,157.67,1.2907]
[1724497017881,0.04417062,157.69,157.67,4.4603]
[1724497019579,0.04417062,157.69,157.67,3.1696]
[1724497019783,0.04417062,157.69,157.52,24.35]
[1724497019985,24.35,157.65,157.54,1.3149]
[1724497020187,3.1709,157.61,157.56,3.1718]
[1724497020487,24.35,157.65,157.56,3.1718]
[1724497020787,3.171,157.61,157.57,3.1717]
[1724497021287,3.1709,157.61,157.54,1.3149]
[1724497022085,3.1709,157.61,157.56,3.1719]
[1724497022789,3.1711,157.6,157.56,3.1719]
[1724497023388,3.1714,157.59,157.54,4.487]
[1724497023582,0.04797411,157.58,157.54,4.487]
[1724497024078,0.04797411,157.58,157.54,1.3149]
[1724497024388,3.21957411,157.58,157.54,1.3149]
[1724497024592,0.04797411,157.58,157.53,2.6204]
[1724497025986,0.04797411,157.58,157.54,1.3056]
[1724497026382,24.35,157.67,157.55,24.35]
[1724497026786,24.35,157.65,157.54,1.3056]
[1724497027088,3.1715,157.58,157.54,1.3056]
[1724497027482,0.0421748,157.58,157.54,1.35247464]
[1724497028287,3.1717,157.57,157.54,1.35247464]
[1724497028988,0.0421748,157.58,157.54,1.35247464]
[1724497029684,0.0421748,157.58,157.55,24.35]
[1724497030388,24.35,157.67,157.55,24.35]
[1724497030593,27.44509486,157.69,157.57,24.35]
[1724497030778,1.16545669,157.68,157.6,24.35]
[1724497031011,24.35,157.72,157.6,24.35]
[1724497031291,3.1701,157.65,157.61,5.7606]
[1724497031583,0.04859934,157.65,157.61,5.80674082]
[1724497032086,0.04859934,157.65,157.61,2.63604082]
[1724497032896,0.04859934,157.65,157.62,3.1705]
[1724497033185,0.04859934,157.65,157.61,2.63604082]
[1724497033393,0.04859934,157.65,157.62,3.1705]
[1724497034310,0.04859934,157.65,157.62,24.35]
[1724497034495,25.7342,157.75,157.62,24.35]
[1724497034799,1.16509726,157.74,157.62,24.35]
[1724497034983,1.16509475,157.73,157.62,24.35]
[1724497035182,25.7342,157.75,157.65,3.1699]
[1724497035183,3.1694,157.69,157.65,3.1699]
[1724497035392,3.21791268,157.69,157.65,0.04425595]
[1724497035588,3.21791268,157.69,157.65,3.21425595]
[1724497036595,3.21791268,157.69,157.66,3.1699]
[1724497036790,3.21791268,157.69,157.65,0.04425595]
[1724497037091,3.21791268,157.69,157.65,3.21425595]
[1724497037324,0.04851268,157.69,157.65,0.04425595]
[1724497037496,0.04851268,157.69,157.67,3.1696]
[1724497038296,0.04851268,157.69,157.65,0.04425595]
[1724497038497,3.1697,157.67,157.65,0.04425595]
[1724497038697,0.04851268,157.69,157.65,3.21435595]
[1724497039191,3.21781268,157.69,157.66,3.1698]
[1724497039602,0.04851268,157.69,157.66,3.1698]
[1724497039997,0.04851268,157.69,157.65,24.39425595]
[1724497040700,0.04851268,157.69,157.66,3.1697]
[1724497041001,0.04851268,157.69,157.65,24.39425595]
[1724497041394,0.04851268,157.69,157.66,3.22116209]
[1724497041902,0.04851268,157.69,157.67,3.1697]
[1724497042097,0.04851268,157.69,157.66,3.22116209]
[1724497043801,0.04851268,157.69,157.68,3.1695]
[1724497044101,0.04851268,157.69,157.65,0.04425595]
[1724497044298,0.04851268,157.69,157.65,3.21425595]
[1724497044803,0.04851268,157.69,157.65,0.04425595]
[1724497045390,19.51851268,157.69,157.65,0.04425595]